fUSD/lending_fUSD_20250216
["ID","MTS","AMOUNT","RATE_DAILY","PERIOD"]
[353233695,1739693459098,-500.0,0.00011205,2]
[353233696,1739693459107,-675.8,0.00011205,2]
[353233697,1739693459117,-500.0,0.00011205,2]
[353233698,1739693459128,-500.0,0.00011205,2]
[353233699,1739693459137,-500.0,0.00011205,2]
[353233700,1739693459146,-500.0,0.00011205,2]
[353233701,1739693459155,-663.58,0.00011205,2]
[353233702,1739693459164,-500.0,0.00011205,2]
[353233703,1739693459175,-500.0,0.00011205,2]
[353233704,1739693459186,-500.0,0.00011205,2]
[353233705,1739693459195,-500.0,0.00011205,2]
[353233706,1739693459204,-500.0,0.00011205,2]
[353233707,1739693459213,-583.87,0.00011205,2]
[353233708,1739693459224,-244.8,0.00011205,2]
[353233709,1739693459233,-546.06,0.00011205,2]
[353233710,1739693459242,-500.0,0.00011205,2]
[353233711,1739693459251,-500.0,0.00011205,2]
[353233712,1739693459259,-500.0,0.00011205,2]
[353233713,1739693459269,-500.0,0.00011205,2]
[353233714,1739693459278,-640.58,0.00011205,2]
[353233715,1739693459287,-500.0,0.00011205,2]
[353233716,1739693459297,-500.0,0.00011205,2]
[353233717,1739693459306,-500.0,0.00011205,2]
[353233718,1739693459315,-516.82,0.00011205,2]
[353233719,1739693459324,-500.0,0.00011205,2]
[353233720,1739693459333,-500.0,0.00011205,2]
[353233721,1739693459342,-571.59,0.00011205,2]
[353233722,1739693459351,-500.0,0.00011205,2]
[353233723,1739693459360,-500.0,0.00011205,2]
[353233724,1739693459370,-500.0,0.00011205,2]
[353233725,1739693459379,-500.0,0.00011205,2]
[353233726,1739693459388,-500.0,0.00011205,2]
[353233727,1739693459398,-500.0,0.00011205,2]
[353233728,1739693459407,-500.0,0.00011205,2]
[353233729,1739693459416,-645.76,0.00011205,2]
[353233730,1739693459426,-512.2,0.00011205,2]
[353233731,1739693459435,-695.37,0.00011205,2]
[353233732,1739693459444,-500.0,0.00011205,2]
[353233733,1739693459453,-500.0,0.00011205,2]
[353233734,1739693459462,-500.0,0.00011205,2]
[353233735,1739693459471,-500.0,0.00011205,2]
[353233736,1739693459480,-500.0,0.00011205,2]
[353233737,1739693459489,-500.0,0.00011205,2]
[353233738,1739693459498,-500.0,0.00011205,2]
[353233739,1739693459507,-500.0,0.00011205,2]
[353233740,1739693459516,-500.0,0.00011205,2]
[353233741,1739693459524,-500.0,0.00011205,2]
[353233742,1739693459533,-500.0,0.00011205,2]
[353233743,1739693459542,-507.04322787,0.00011205,2]
[353233744,1739693459551,-519.61,0.00011205,2]
[353233745,1739693459561,-679.91,0.00011205,2]
[353233746,1739693459571,-500.0,0.00011205,2]
[353233747,1739693459580,-500.0,0.00011205,2]
[353233748,1739693459588,-1111.22,0.00011205,2]
[353233749,1739693459597,-715.04,0.00011205,2]
[353233750,1739693459607,-173.44507964,0.00011205,2]
[353233751,1739693459616,-535.42,0.00011205,2]
[353233752,1739693459625,-500.0,0.00011205,2]
[353233753,1739693459636,-500.0,0.00011205,2]
[353233754,1739693459648,-500.0,0.00011205,2]
[353233755,1739693459658,-500.0,0.00011205,2]
[353233756,1739693459673,-500.0,0.00011205,2]
[353233757,1739693459682,-517.98,0.00011205,2]
[353233758,1739693459693,-790.22,0.00011205,2]
[353233759,1739693459706,-500.0,0.00011205,2]
[353233760,1739693459716,-500.0,0.00011205,2]
[353233761,1739693459726,-1362.45,0.00011205,2]
[353233762,1739693459735,-752.51,0.00011205,2]
[353233763,1739693459746,-522.12,0.00011205,2]
[353233764,1739693459755,-842.77,0.00011205,2]
[353233765,1739693459775,-612.93,0.00011205,2]
[353233766,1739693459784,-785.52,0.00011205,2]
[353233767,1739693459793,-1748.41,0.00011205,2]
[353233768,1739693459802,-948.38,0.00011205,2]
[353233769,1739693459811,-500.0,0.00011205,2]
[353233770,1739693459821,-1191.84,0.00011205,2]
[353233771,1739693459830,-500.0,0.00011205,2]
[353233772,1739693459839,-500.0,0.00011205,2]
[353233773,1739693459848,-500.0,0.00011205,2]
[353233774,1739693459857,-526.97,0.00011205,2]
[353233775,1739693459866,-500.0,0.00011205,2]
[353233776,1739693459876,-914.37,0.00011205,2]
[353233777,1739693459885,-1487.82,0.00011205,2]
[353233778,1739693460005,-500.0,0.00011205,2]
[353233779,1739693460016,-596.72,0.00011205,2]
[353233780,1739693460025,-500.0,0.00011205,2]
[353233781,1739693460034,-1458.87,0.00011205,2]
[353233782,1739693460043,-569.92,0.00011205,2]
[353233783,1739693460052,-870.86,0.00011205,2]
[353233784,1739693460062,-509.11300615,0.00011205,2]
[353233785,1739693460071,-500.0,0.00011205,2]
[353233786,1739693460082,-1274.68,0.00011205,2]
[353233787,1739693460092,-762.18,0.00011205,2]
[353233788,1739693460101,-500.0,0.00011205,2]
[353233789,1739693460110,-934.2,0.00011205,2]
[353233790,1739693460120,-1627.75,0.00011205,2]
[353233791,1739693460129,-500.0,0.00011205,2]
[353233792,1739693460139,-500.0,0.00011205,2]
[353233793,1739693460148,-893.41,0.00011205,2]
[353233794,1739693460157,-801.66,0.00011205,2]
[353233795,1739693460167,-1473.94,0.00011205,2]
[353233796,1739693460181,-1252.3,0.00011205,2]
[353233797,1739693460190,-500.0,0.00011205,2]
[353233798,1739693460200,-654.93,0.00011205,2]
[353233799,1739693460209,-500.0,0.00011205,2]
[353233800,1739693460218,-500.0,0.00011205,2]
[353233801,1739693460228,-500.0,0.00011205,2]
[353233802,1739693460237,-1930.43,0.00011205,2]
[353233803,1739693460246,-2845.78,0.00011205,2]
[353233804,1739693460255,-1075.83,0.00011205,2]
[353233805,1739693460265,-500.0,0.00011205,2]
[353233806,1739693460276,-548.94,0.00011205,2]
[353233807,1739693460286,-1088.93,0.00011205,2]
[353233808,1739693460295,-706.27,0.00011205,2]
[353233809,1739693460305,-1271.66,0.00011205,2]
[353233810,1739693460315,-1059.89,0.00011205,2]
[353233811,1739693460324,-256.84,0.00011205,2]
[353233812,1739693460333,-1098.98,0.00011205,2]
[353233813,1739693460343,-500.0,0.00011205,2]
[353233814,1739693460352,-911.39,0.00011205,2]
[353233815,1739693460362,-914.0,0.00011205,2]
[353233816,1739693460371,-843.66,0.00011205,2]
[353233817,1739693460380,-500.0,0.00011205,2]
[353233818,1739693460390,-1618.34,0.00011205,2]
[353233819,1739693460399,-2242.66,0.00011205,2]
[353233820,1739693460409,-1510.94,0.00011205,2]
[353233821,1739693460419,-500.0,0.00011205,2]
[353233822,1739693460427,-500.0,0.00011205,2]
[353233823,1739693460438,-1232.19,0.00011205,2]
[353233824,1739693460447,-1873.03,0.00011205,2]
[353233825,1739693460457,-738.69,0.00011205,2]
[353233826,1739693460466,-738.36,0.00011205,2]
[353233827,1739693460476,-550.98,0.00011205,2]
[353233828,1739693460485,-1772.73,0.00011205,2]
[353233829,1739693460495,-644.38,0.00011205,2]
[353233830,1739693460506,-1414.42,0.00011205,2]
[353233831,1739693460515,-500.0,0.00011205,2]
[353233832,1739693460525,-500.0,0.00011205,2]
[353233833,1739693460537,-500.0,0.00011205,2]
[353233834,1739693460551,-971.55,0.00011205,2]
[353233835,1739693460562,-517.21,0.00011205,2]
[353233836,1739693460576,-1779.65,0.00011205,2]
[353233837,1739693460594,-616.51,0.00011205,2]
[353233838,1739693460604,-1764.2,0.00011205,2]
[353233839,1739693460614,-3098.6,0.00011205,2]
[353233840,1739693460623,-1025.81,0.00011205,2]
[353233841,1739693460632,-1699.9,0.00011205,2]
[353233842,1739693460641,-3613.38,0.00011205,2]
[353233843,1739693460650,-1678.0,0.00011205,2]
[353233844,1739693460660,-535.91,0.00011205,2]
[353233845,1739693460670,-1152.22,0.00011205,2]
[353233846,1739693460681,-907.34,0.00011205,2]
[353233847,1739693460691,-553.16224064,0.00011205,2]
[353233848,1739693460703,-3037.62,0.00011205,2]
[353233849,1739693460713,-1912.24,0.00011205,2]
[353233850,1739693460723,-1045.48,0.00011205,2]
[353233851,1739693460733,-2072.12,0.00011205,2]
[353233852,1739693460742,-500.0,0.00011205,2]
[353233853,1739693460751,-1391.39,0.00011205,2]
[353233854,1739693460760,-814.32,0.00011205,2]
[353233855,1739693460770,-1395.61,0.00011205,2]
[353233856,1739693460778,-502.36858339,0.00011205,2]
[353233857,1739693460788,-500.0,0.00011205,2]
[353233858,1739693460798,-1554.3,0.00011205,2]
[353233859,1739693460807,-801.19,0.00011205,2]
[353233860,1739693460816,-500.0,0.00011205,2]
[353233861,1739693460826,-1173.12,0.00011205,2]
[353233862,1739693460836,-804.51,0.00011205,2]
[353233863,1739693460846,-1232.61,0.00011205,2]
[353233864,1739693460855,-743.71,0.00011205,2]
[353233865,1739693460865,-1900.23,0.00011205,2]
[353233866,1739693460875,-2056.31,0.00011205,2]
[353233867,1739693460885,-500.0,0.00011205,2]
[353233868,1739693460895,-500.0,0.00011205,2]
[353233869,1739693460904,-500.0,0.00011205,2]
[353233870,1739693460913,-957.04,0.00011205,2]
[353233871,1739693460923,-500.0,0.00011205,2]
[353233872,1739693460933,-1146.85,0.00011205,2]
[353233873,1739693460942,-1550.6,0.00011205,2]
[353233874,1739693460953,-2373.51,0.00011205,2]
[353233875,1739693460963,-3912.64,0.00011205,2]
[353233876,1739693460972,-1643.53,0.00011205,2]
[353233877,1739693460982,-1084.43,0.00011205,2]
[353233878,1739693460991,-5172.54,0.00011205,2]
[353233879,1739693461001,-1459.19,0.00011205,2]
[353233880,1739693461011,-1758.63,0.00011205,2]
[353233881,1739693461021,-500.0,0.00011205,2]
[353233882,1739693461031,-2056.22,0.00011205,2]
[353233883,1739693461040,-1267.31,0.00011205,2]
[353233884,1739693461051,-500.0,0.00011205,2]
[353233885,1739693461061,-981.99,0.00011205,2]
[353233886,1739693461070,-500.0,0.00011205,2]
[353233887,1739693461079,-551.63712343,0.00011205,2]
[353233888,1739693461088,-677.34,0.00011205,2]
[353233889,1739693461097,-1754.09,0.00011205,2]
[353233890,1739693461108,-1267.47,0.00011205,2]
[353233891,1739693461117,-500.0,0.00011205,2]
[353233892,1739693461126,-1913.38,0.00011205,2]
[353233893,1739693461136,-712.96,0.00011205,2]
[353233894,1739693461145,-3004.31,0.00011205,2]
[353233895,1739693461155,-675.43,0.00011205,2]
[353233896,1739693461165,-1092.38,0.00011205,2]
[353233897,1739693461176,-500.0,0.00011205,2]
[353233898,1739693461186,-983.17,0.00011205,2]
[353233899,1739693461197,-500.0,0.00011205,2]
[353233900,1739693461207,-1277.4,0.00011205,2]
[353233901,1739693461217,-664.05,0.00011205,2]
[353233902,1739693461227,-990.09,0.00011205,2]
[353233903,1739693461237,-500.0,0.00011205,2]
[353233904,1739693461247,-500.0,0.00011205,2]
[353233905,1739693461256,-500.0,0.00011205,2]
[353233906,1739693461265,-999.6,0.00011205,2]
[353233907,1739693461275,-506.10960199,0.00011205,2]
[353233908,1739693461284,-500.0,0.00011205,2]
[353233909,1739693461295,-1898.72,0.00011205,2]
[353233910,1739693461304,-2997.14,0.00011205,2]
[353233911,1739693461313,-500.0,0.00011205,2]
[353233912,1739693461323,-500.0,0.00011205,2]
[353233913,1739693461332,-502.25,0.00011205,2]
[353233914,1739693461342,-500.0,0.00011205,2]
[353233915,1739693461352,-1417.68,0.00011205,2]
[353233916,1739693461362,-868.14,0.00011205,2]
[353233917,1739693461372,-1565.59,0.00011205,2]
[353233918,1739693461382,-3878.36,0.00011205,2]
[353233919,1739693461392,-613.95,0.00011205,2]
[353233920,1739693461401,-500.0,0.00011205,2]
[353233921,1739693461411,-1515.99,0.00011205,2]
[353233922,1739693461421,-623.81,0.00011205,2]
[353233923,1739693461432,-500.0,0.00011205,2]
[353233924,1739693461441,-600.1,0.00011205,2]
[353233925,1739693461451,-500.0,0.00011205,2]
[353233926,1739693461463,-545.31,0.00011205,2]
[353233927,1739693461473,-1031.54,0.00011205,2]
[353233928,1739693461483,-1785.0,0.00011205,2]
[353233929,1739693461493,-1200.0,0.00011232,2]
[353233930,1739693461502,-1200.0,0.00011232,2]
[353233931,1739693461512,-1200.0,0.00011232,2]
[353233932,1739693461523,-1200.0,0.00011232,2]
[353233933,1739693461535,-1785.0,0.00011233,2]
[353233934,1739693461545,-1785.0,0.0001126,2]
[353233935,1739693461554,-1060.0,0.00011267,2]
[353233936,1739693461564,-500.0,0.00011287,2]
[353233937,1739693461574,-500.0,0.00011287,2]
[353233938,1739693461584,-500.0,0.00011287,2]
[353233939,1739693461594,-1688.32,0.00011287,2]
[353233940,1739693461604,-500.0,0.00011287,2]
[353233941,1739693461614,-500.0,0.00011287,2]
[353233942,1739693461624,-500.0,0.00011287,2]
[353233943,1739693461634,-500.0,0.00011287,2]
[353233944,1739693461644,-226.98910866,0.00011287,2]
[353233945,1739693461654,-500.0,0.00011287,2]
[353233946,1739693461664,-500.0,0.00011287,2]
[353233947,1739693461675,-510.3,0.00011287,2]
[353233948,1739693461685,-500.0,0.00011287,2]
[353233949,1739693461696,-500.0,0.00011287,2]
[353233950,1739693461706,-500.0,0.00011287,2]
[353233951,1739693461715,-500.0,0.00011287,2]
[353233952,1739693461726,-500.0,0.00011287,2]
[353233953,1739693461736,-500.0,0.00011287,2]
[353233954,1739693461746,-500.0,0.00011287,2]
[353233955,1739693461756,-553.68,0.00011287,2]
[353233956,1739693461766,-500.0,0.00011287,2]
[353233957,1739693461776,-464.69638933,0.00011287,2]
[353233958,1739693461786,-500.0,0.00011287,2]
[353233959,1739693461798,-500.0,0.00011287,2]
[353233960,1739693461809,-500.0,0.00011287,2]
[353233961,1739693461819,-500.0,0.00011287,2]
[353233962,1739693461830,-500.0,0.00011287,2]
[353233963,1739693461839,-500.0,0.00011287,2]
[353233964,1739693461850,-500.0,0.00011287,2]
[353233965,1739693461860,-264.95937787,0.00011287,2]
[353233966,1739693461870,-500.0,0.00011287,2]
[353233967,1739693461879,-500.0,0.00011287,2]
[353233968,1739693461889,-500.0,0.00011287,2]
[353233969,1739693461899,-681.72,0.00011287,2]
[353233970,1739693461910,-669.19,0.00011287,2]
[353233971,1739693462027,-500.0,0.00011287,2]
[353233972,1739693462037,-500.0,0.00011287,2]
[353233973,1739693462047,-535.78,0.00011287,2]
[353233974,1739693462056,-500.0,0.00011287,2]
[353233975,1739693462065,-500.0,0.00011287,2]
[353233976,1739693462074,-500.0,0.00011287,2]
[353233977,1739693462084,-685.05,0.00011287,2]
[353233978,1739693462093,-500.0,0.00011287,2]
[353233979,1739693462103,-680.9,0.00011287,2]
[353233980,1739693462112,-500.0,0.00011287,2]
[353233981,1739693462121,-527.02,0.00011287,2]
[353233982,1739693462130,-500.0,0.00011287,2]
[353233983,1739693462140,-500.0,0.00011287,2]
[353233984,1739693462149,-669.59,0.00011287,2]
[353233985,1739693462158,-500.0,0.00011287,2]
[353233986,1739693462168,-500.0,0.00011287,2]
[353233987,1739693462179,-500.0,0.00011287,2]
[353233988,1739693462190,-500.0,0.00011287,2]
[353233989,1739693462200,-500.0,0.00011287,2]
[353233990,1739693462210,-863.76,0.00011287,2]
[353233991,1739693462220,-500.0,0.00011287,2]
[353233992,1739693462230,-500.0,0.00011287,2]
[353233993,1739693462239,-842.56,0.00011287,2]
[353233994,1739693462248,-500.0,0.00011287,2]
[353233995,1739693462259,-500.0,0.00011287,2]
[353233996,1739693462269,-500.0,0.00011287,2]
[353233997,1739693462279,-533.36,0.00011287,2]
[353233998,1739693462289,-500.0,0.00011287,2]
[353233999,1739693462299,-500.0,0.00011287,2]
[353234000,1739693462308,-629.12,0.00011287,2]
[353234001,1739693462318,-500.0,0.00011287,2]
[353234002,1739693462328,-500.0,0.00011287,2]
[353234003,1739693462338,-500.0,0.00011287,2]
[353234004,1739693462348,-500.0,0.00011287,2]
[353234005,1739693462358,-500.0,0.00011287,2]
[353234006,1739693462367,-500.0,0.00011287,2]
[353234007,1739693462377,-500.0,0.00011287,2]
[353234008,1739693462387,-500.0,0.00011287,2]
[353234009,1739693462397,-500.0,0.00011287,2]
[353234010,1739693462406,-1940.01,0.00011287,2]
[353234011,1739693462416,-508.33,0.00011287,2]
[353234012,1739693462426,-688.54,0.00011287,2]
[353234013,1739693462436,-733.95,0.00011287,2]
[353234014,1739693462446,-500.0,0.00011287,2]
[353234015,1739693462455,-699.65,0.00011287,2]
[353234016,1739693462465,-500.0,0.00011287,2]
[353234017,1739693462475,-500.0,0.00011287,2]
[353234018,1739693462484,-1010.83,0.00011287,2]
[353234019,1739693462493,-500.0,0.00011287,2]
[353234020,1739693462502,-500.0,0.00011287,2]
[353234021,1739693462512,-500.0,0.00011287,2]
[353234022,1739693462521,-253.54876909,0.00011287,2]
[353234023,1739693462531,-575.87,0.00011287,2]
[353234024,1739693462540,-610.37,0.00011287,2]
[353234025,1739693462550,-708.75,0.00011287,2]
[353234026,1739693462560,-1037.76,0.00011287,2]
[353234027,1739693462570,-500.0,0.00011287,2]
[353234028,1739693462579,-500.0,0.00011287,2]
[353234029,1739693462589,-500.0,0.00011287,2]
[353234030,1739693462599,-500.0,0.00011287,2]
[353234031,1739693462608,-571.28,0.00011287,2]
[353234032,1739693462617,-500.0,0.00011287,2]
[353234033,1739693462626,-500.0,0.00011287,2]
[353234034,1739693462636,-500.0,0.00011287,2]
[353234035,1739693462645,-500.0,0.00011287,2]
[353234036,1739693462654,-917.4,0.00011287,2]
[353234037,1739693462664,-1418.61,0.00011287,2]
[353234038,1739693462673,-500.0,0.00011287,2]
[353234039,1739693462682,-500.0,0.00011287,2]
[353234040,1739693462691,-500.0,0.00011287,2]
[353234041,1739693462701,-574.07,0.00011287,2]
[353234042,1739693462711,-1235.91,0.00011287,2]
[353234043,1739693462721,-500.0,0.00011287,2]
[353234044,1739693462730,-436.79367077,0.00011287,2]
[353234045,1739693462740,-675.8,0.00011287,2]
[353234046,1739693462749,-500.0,0.00011287,2]
[353234047,1739693462759,-500.0,0.00011287,2]
[353234048,1739693462769,-500.0,0.00011287,2]
[353234049,1739693462778,-500.0,0.00011287,2]
[353234050,1739693462787,-663.58,0.00011287,2]
[353234051,1739693462797,-500.0,0.00011287,2]
[353234052,1739693462806,-500.0,0.00011287,2]
[353234053,1739693462816,-500.0,0.00011287,2]
[353234054,1739693462825,-500.0,0.00011287,2]
[353234055,1739693462835,-500.0,0.00011287,2]
[353234056,1739693462844,-583.87,0.00011287,2]
[353234057,1739693462853,-546.06,0.00011287,2]
[353234058,1739693462862,-500.0,0.00011287,2]
[353234059,1739693462872,-500.0,0.00011287,2]
[353234060,1739693462881,-445.64722467,0.00011287,2]
[353234061,1739693462892,-640.58,0.00011287,2]
[353234062,1739693462901,-500.0,0.00011287,2]
[353234063,1739693462911,-419.12170183,0.00011287,2]
[353234064,1739693462920,-500.0,0.00011287,2]
[353234065,1739693462929,-516.82,0.00011287,2]
[353234066,1739693462939,-500.0,0.00011287,2]
[353234067,1739693462948,-500.0,0.00011287,2]
[353234068,1739693462958,-571.59,0.00011287,2]
[353234069,1739693462968,-500.0,0.00011287,2]
[353234070,1739693462979,-500.0,0.00011287,2]
[353234071,1739693462990,-500.0,0.00011287,2]
[353234072,1739693463000,-500.0,0.00011287,2]
[353234073,1739693463009,-500.0,0.00011287,2]
[353234074,1739693463018,-500.0,0.00011287,2]
[353234075,1739693463028,-500.0,0.00011287,2]
[353234076,1739693463038,-645.76,0.00011287,2]
[353234077,1739693463047,-512.2,0.00011287,2]
[353234078,1739693463057,-695.37,0.00011287,2]
[353234079,1739693463067,-500.0,0.00011287,2]
[353234080,1739693463077,-500.0,0.00011287,2]
[353234081,1739693463086,-500.0,0.00011287,2]
[353234082,1739693463096,-500.0,0.00011287,2]
[353234083,1739693463105,-500.0,0.00011287,2]
[353234084,1739693463115,-28.42901569,0.00011287,2]
[353234085,1739693463527,-471.57098431,0.00011287,2]
[353234086,1739693463537,-500.0,0.00011287,2]
[353234087,1739693463547,-500.0,0.00011287,2]
[353234088,1739693463556,-500.0,0.00011287,2]
[353234089,1739693463566,-500.0,0.00011287,2]
[353234090,1739693463576,-500.0,0.00011287,2]
[353234091,1739693463586,-519.61,0.00011287,2]
[353234092,1739693463596,-679.91,0.00011287,2]
[353234093,1739693463606,-500.0,0.00011287,2]
[353234094,1739693463616,-500.0,0.00011287,2]
[353234095,1739693463627,-1111.22,0.00011287,2]
[353234096,1739693463636,-715.04,0.00011287,2]
[353234097,1739693463646,-1200.0,0.00011287,2]
[353234098,1739693463655,-535.42,0.00011287,2]
[353234099,1739693463664,-500.0,0.00011287,2]
[353234100,1739693463674,-503.21,0.00011287,2]
[353234101,1739693463683,-500.0,0.00011287,2]
[353234102,1739693463693,-500.0,0.00011287,2]
[353234103,1739693463703,-500.0,0.00011287,2]
[353234104,1739693463713,-517.98,0.00011287,2]
[353234105,1739693463723,-790.22,0.00011287,2]
[353234106,1739693463732,-500.0,0.00011287,2]
[353234107,1739693463743,-500.0,0.00011287,2]
[353234108,1739693463753,-1362.45,0.00011287,2]
[353234109,1739693463763,-752.51,0.00011287,2]
[353234110,1739693463772,-522.12,0.00011287,2]
[353234111,1739693463782,-842.77,0.00011287,2]
[353234112,1739693463791,-612.93,0.00011287,2]
[353234113,1739693463803,-785.52,0.00011287,2]
[353234114,1739693463812,-1748.41,0.00011287,2]
[353234115,1739693463822,-948.38,0.00011287,2]
[353234116,1739693463831,-1191.84,0.00011287,2]
[353234117,1739693463841,-500.0,0.00011287,2]
[353234118,1739693463850,-500.0,0.00011287,2]
[353234119,1739693463859,-500.0,0.00011287,2]
[353234120,1739693463869,-914.37,0.00011287,2]
[353234121,1739693463878,-1487.82,0.00011287,2]
[353234122,1739693463888,-500.0,0.00011287,2]
[353234123,1739693463897,-596.72,0.00011287,2]
[353234124,1739693463906,-500.0,0.00011287,2]
[353234125,1739693463916,-1458.87,0.00011287,2]
[353234126,1739693463926,-569.92,0.00011287,2]
[353234127,1739693463935,-870.86,0.00011287,2]
[353234128,1739693463944,-500.0,0.00011287,2]
[353234129,1739693463954,-1274.68,0.00011287,2]
[353234130,1739693463963,-762.18,0.00011287,2]
[353234131,1739693463973,-376.33125229,0.00011287,2]
[353234132,1739693463982,-934.2,0.00011287,2]
[353234133,1739693463992,-1627.75,0.00011287,2]
[353234134,1739693464001,-500.0,0.00011287,2]
[353234135,1739693464011,-500.0,0.00011287,2]
[353234136,1739693464020,-893.41,0.00011287,2]
[353234137,1739693464029,-801.66,0.00011287,2]
[353234138,1739693464038,-1473.94,0.00011287,2]
[353234139,1739693464047,-1252.3,0.00011287,2]
[353234140,1739693464056,-500.0,0.00011287,2]
[353234141,1739693464065,-654.93,0.00011287,2]
[353234142,1739693464074,-500.0,0.00011287,2]
[353234143,1739693464083,-500.0,0.00011287,2]
[353234144,1739693464093,-500.0,0.00011287,2]
[353234145,1739693464102,-1930.43,0.00011287,2]
[353234146,1739693464111,-2845.78,0.00011287,2]
[353234147,1739693464121,-1075.83,0.00011287,2]
[353234148,1739693464131,-500.0,0.00011287,2]
[353234149,1739693464140,-548.94,0.00011287,2]
[353234150,1739693464149,-1088.93,0.00011287,2]
[353234151,1739693464159,-706.27,0.00011287,2]
[353234152,1739693464169,-1059.89,0.00011287,2]
[353234153,1739693464183,-1271.66,0.00011287,2]
[353234154,1739693464193,-1098.98,0.00011287,2]
[353234155,1739693464202,-500.0,0.00011287,2]
[353234156,1739693464212,-911.39,0.00011287,2]
[353234157,1739693464221,-914.0,0.00011287,2]
[353234158,1739693464230,-843.66,0.00011287,2]
[353234159,1739693464240,-500.0,0.00011287,2]
[353234160,1739693464249,-1618.34,0.00011287,2]
[353234161,1739693464258,-2242.66,0.00011287,2]
[353234162,1739693464268,-1510.94,0.00011287,2]
[353234163,1739693464278,-500.0,0.00011287,2]
[353234164,1739693464288,-500.0,0.00011287,2]
[353234165,1739693464299,-1232.19,0.00011287,2]
[353234166,1739693464309,-1873.03,0.00011287,2]
[353234167,1739693464318,-738.69,0.00011287,2]
[353234168,1739693464328,-738.36,0.00011287,2]
[353234169,1739693464338,-550.98,0.00011287,2]
[353234170,1739693464348,-1772.73,0.00011287,2]
[353234171,1739693464358,-644.38,0.00011287,2]
[353234172,1739693464367,-1414.42,0.00011287,2]
[353234173,1739693464378,-244.4787192,0.00011287,2]
[353234174,1739693464388,-500.0,0.00011287,2]
[353234175,1739693464398,-298.91415389,0.00011287,2]
[353234176,1739693464408,-971.55,0.00011287,2]
[353234177,1739693464418,-1208.12343679,0.00011287,2]
[353234178,1739693464443,-363.69303909,0.00010958,2]
[353234179,1739693464474,-136.30696091,0.00010958,2]
[353234180,1739693464483,-442.63679203,0.00011287,2]
[353234181,1739693464496,-128.88977118,0.00011287,2]
[353234182,1739693464505,-616.51,0.00011287,2]
[353234183,1739693464515,-91.54221429,0.00011287,2]
[353234184,1739693464527,-1672.65778571,0.00011287,2]
[353234185,1739693464536,-3098.6,0.00011287,2]
[353234186,1739693464547,-378.32836935,0.00011287,2]
[353234187,1739693465124,-270.88963271,0.00010958,2]
[353234188,1739693465136,-229.11036729,0.00010958,2]
[353234189,1739693465145,-309.62702741,0.00010958,2]
[353234190,1739693465156,-190.37297259,0.00010958,2]
[353234191,1739693465165,-500.0,0.00010958,2]
[353234192,1739693465178,-145.6124894,0.00010958,2]
[353234193,1739693465190,-101.56045069,0.00010958,2]
[353234194,1739693465199,-241.659549,0.00010958,2]